[Event "Charlotte Summer IM B 2022"]
[Site "Charlotte"]
[Date "2022.07.25"]
[Round "2.3"]
[White "Wang, Tianqi"]
[Black "Atanasov, Anthony"]
[Result "1-0"]
[ECO "C47"]
[WhiteElo "2402"]
[BlackElo "2172"]
[Annotator "TA"]
[PlyCount "137"]
[EventDate "2022.07.24"]
[EventType "tourn"]
[EventCountry "USA"]
[SourceTitle "playchess.com"]
[Source "ChessBase"]
[SourceQuality "1"]
[TimeControl "5400+30"]

{[%evp 16,137,12,0,12,14,10,10,10,7,6,4,15,0,0,9,7,0,35,20,45,25,43,25,53,58,75,48,59,0,57,37,44,35,45,52,50,54,75,55,57,22,18,20,22,19,37,7,53,46,84,84,87,86,84,91,113,57,70,35,84,84,84,84,84,84,84,84,90,84,110,109,160,153,192,190,190,190,230,186,186,186,230,230,230,230,230,230,200,185,469,230,1287,1289,1155,779,6371,6440,29956,10163,6095,5077,29965,29965,29965,29961,29962,11979,4134,1570,29980,29981,29981,29982,29983,29983,29984,29985,29985,29986,29986,29987,29987,29988]} 1. e4 {[%emt 0:01:46]} e5 {[%emt 0:00:06]} 2. Nf3 {[%emt 0:00:49]} Nf6 {[%emt 1:31:24]} 3. Nc3 {[%emt 0:00:16]} Nc6 {[%emt 0:00:00]} 4. d4 {[%emt 0:00:08]} exd4 {[%emt 0:00:00]} 5. Nxd4 {[%emt 0:00:05]} Bb4 {[%emt 0:00:00]} 6. Nxc6 {[%emt 0:00:06]} bxc6 {[%emt 0:00:00]} 7. Bd3 {[%emt 0:00:06]} d5 {[%emt 0:00:00]} 8. Bd2 {[%emt 1:31:14]} O-O {[%emt 0:00:00]} 9. O-O {[%emt 0:00:00]} Bxc3 {[%emt 0:00:00] C47: Scotch Four Knights and Four Knights with 4 g3.} 10. Bxc3 {[%emt 0:00:00]} Nxe4 {[%emt 0:00:00]} 11. Bxe4 {[%emt 0:00:00]} dxe4 {[%emt 0:00:00] The position is equal.} 12. Qe2 {[%emt 0:00:00] 12.Qh5 is the hot move.} Qe7 {[%emt 0:00:00]} 13. Rad1 {[%emt 0:00:00]} Bf5 {[%emt 0:00:00]} 14. Qe3 {[%emt 0:00:00]} Rfd8 {[%emt 0:00:00] [#]} 15. Rd4 $146 {[%emt 0:00:00]} ({Predecessor:} 15. Rxd8+ Qxd8 16. f3 Qd5 17. fxe4 Bxe4 18. Qg3 Bg6 19. Re1 Qd6 20. Be5 Qc5+ 21. Qf2 Qxf2+ 22. Kxf2 Bxc2 23. Bxc7 {½-½ (65) Golubev,M (2461)-Davtyan,A (2461) Chess.com INT 2020}) 15... Rxd4 {[%emt 0:00:00]} 16. Qxd4 {[%emt 0:00:00][%csl Gc3][%cal Rd4g7] [#]} Qg5 {[%emt 0:00:00]} 17. Qe5 {[%emt 0:00:00][%mdl 1024] White has compensation.} Rc8 {[%emt 0:00:00]} 18. Re1 {[%emt 0:00:00][%cal Oh2h4]} h5 {[%emt 0:00:00]} 19. Kh1 {[%emt 0:00:00]} h4 {[%emt 0:00:00]} 20. h3 $1 {[%emt 0:00:00]} Qg6 {[%emt 0:00:00]} 21. Qf4 {[%emt 0:00:00]} Qh5 {[%emt 0:00:00]} 22. Qe5 {[%emt 0:00:00][%csl Gc3][%cal Re5g7]} (22. Qe3 $5 {[%cal Re3a7]}) 22... Qg6 {[%emt 0:00:00]} 23. Re3 {[%emt 0:00:00]} Rd8 {[%emt 0:00:00]} 24. Qxc7 {[%emt 0:00:00]} Rd1+ {[%emt 0:00:00]} 25. Re1 {[%emt 0:00:00]} Qd6 {[%emt 0:00:00]} 26. Qxa7 {[%emt 0:00:00]} Rxe1+ {[%emt 0:00:47]} 27. Bxe1 $14 {[%emt 0:00:00][%mdl 4096] Endgame KQB-KQB} Qd1 {[%emt 0:03:04][%csl LRc2,LRe1]} 28. Qb8+ {[%emt 0:00:00]} Kh7 {[%emt 0:00:01]} 29. Qb4 {[%emt 0:00:00]} Qxc2 {[%emt 0:00:45]} 30. Kh2 {[%emt 0:00:00]} c5 {[%emt 0:00:16]} 31. Qb8 {[%emt 0:00:00]} e3 {[%emt 0:01:25]} (31... Kg6 $11) 32. Qf4 {[%emt 0:00:00]} exf2 {[%emt 0:05:06]} 33. Qxh4+ {[%emt 0:00:00]} Kg6 {[%emt 0:00:17]} 34. Qg3+ {[%emt 0:00:00]} ({Don't take} 34. Bxf2 Qxb2 35. a4 (35. Bxc5 Qxa2 36. Qg3+ Kh7 $11) 35... c4 $14) 34... Kh7 {[%emt 0:00:01]} 35. Qxf2 {[%emt 0:00:00]} c4 {[%emt 0:00:45]} 36. Qg3 {[%emt 0:00:00]} (36. a4 $16) 36... f6 {[%emt 0:00:59]} 37. Bc3 {[%emt 0:00:00]} Be4 {[%emt 0:00:01]} (37... Qa4 $14) 38. a4 $16 {[%emt 0:00:00]} Bb7 {[%emt 0:02:13]} 39. Qh4+ {[%emt 0:00:00]} Kg6 {[%emt 0:00:01][%csl Gb7][%cal Rc2g2]} 40. Qg4+ {[%emt 0:00:00]} Kh7 {[%emt 0:00:15]} 41. a5 {[%emt 0:00:00][%cal Oc3f6] aiming for Bxf6!} Qf2 {[%emt 0:00:33]} 42. h4 {[%emt 0:00:00]} Qc5 {[%emt 0:00:37]} 43. Qd7 {[%emt 0:00:00] Inhibits Qd6+.} Bc8 {[%emt 0:01:02] [#]} ({Black should try} 43... Bc6 44. Qg4 Qd6+ 45. Kh1 Bb7) 44. Bd4 $1 {[%emt 0:00:00]} Bxd7 {[%emt 0:00:18]} 45. Bxc5 {[%emt 0:00:00] Hoping for a6. KB-KB} Kg6 {[%emt 0:00:08]} 46. Kg3 {[%emt 0:00:00]} Kf5 {[%emt 0:00:26]} 47. Bf8 {[%emt 0:00:00]} g6 {[%emt 0:00:12]} 48. a6 {[%emt 0:00:00]} Bc6 {[%emt 0:00:50]} 49. Bg7 {[%emt 0:00:00] Threatens to win with Kf2.} Ke6 {[%emt 0:00:37]} 50. Kf2 {[%emt 0:00:00]} f5 {[%emt 0:02:47]} 51. g3 {[%emt 0:00:00] And now Ke3 would win.} Kd5 {[%emt 0:00:32]} 52. Ke3 {[%emt 0:22:00]} Ke6 $2 {[%emt 0:01:02]} (52... Bb5 {was worth a try.} 53. a7 Bc6) 53. Kd4 {[%emt 0:00:00]} (53. Bc3 $142 {Kd4 is the strong threat.} Kd6 54. Kf4) 53... Bb5 $2 {[%emt 0:00:00]} (53... Bf3 54. a7 Bd5) 54. a7 $18 {[%emt 0:00:00]} Bc6 {[%emt 0:00:05]} 55. Kxc4 {[%emt 0:00:00]} Bf3 {[%emt 0:00:26]} 56. Kd4 {[%emt 0:00:00]} Bb7 {[%emt 0:00:35]} 57. Ke3 {[%emt 0:02:30]} Ba8 {[%emt 0:00:37]} 58. Kf4 {[%emt 0:00:00] White threatens Kg5 and mate.} Bh1 {[%emt 0:00:43]} 59. Kg5 {[%emt 0:00:00]} Kf7 {[%emt 0:00:22]} 60. Bd4 {[%emt 0:00:00]} Bf3 {[%emt 0:00:40]} 61. Bf6 {[%emt 0:00:00][%cal Oh4h5] Threatening mate with h5!} Be4 {[%emt 0:00:13]} 62. b3 {[%emt 0:00:00]} (62. b4 $142 Ke6 63. b5) 62... Bd5 {[%emt 0:00:46]} 63. h5 {[%emt 0:00:00] White mates.} gxh5 {[%emt 0:00:11]} 64. Kxf5 {[%emt 0:00:00]} Bf3 {[%emt 0:00:31]} 65. Ke5 {[%emt 0:00:00]} Bg2 {[%emt 0:00:15]} 66. Bh4 {[%emt 0:00:00]} Ke8 {[%emt 0:00:05]} 67. Kd6 {[%emt 0:00:00]} Bf3 {[%emt 0:00:08]} 68. Kc7 {[%emt 0:00:00]} Be4 {[%emt 0:00:06]} 69. b4 {[%emt 0:00:00] Weighted Error Value: White=0.14 (very precise) /Black=0.47} 1-0

[Event "Charlotte Summer IM B 2022"]
[Site "Charlotte"]
[Date "2022.07.25"]
[Round "2.4"]
[White "Eckert, Doug"]
[Black "Kolay, Alex"]
[Result "1-0"]
[ECO "D11"]
[WhiteElo "2177"]
[BlackElo "2188"]
[Annotator "TA"]
[PlyCount "149"]
[EventDate "2022.07.24"]
[EventType "tourn"]
[EventCountry "USA"]
[SourceTitle "playchess.com"]
[Source "ChessBase"]
[SourceQuality "1"]
[TimeControl "5400+30"]

{[%evp 9,149,0,0,0,0,0,0,0,0,0,0,0,2,0,2,-26,-14,-30,-19,-20,-16,-27,-41,-32,-10,-28,-20,-36,83,104,241,231,202,217,411,408,501,501,496,472,467,467,450,462,522,513,512,505,538,538,538,535,519,521,527,515,514,490,458,389,387,380,458,458,458,459,457,426,426,418,479,479,472,465,458,447,447,407,403,396,389,381,367,339,277,266,12831,12831,12831,12831,12833,12831,12835,545,1187,536,12841,12842,12842,12843,12845,12845,12846,12845,12845,12845,12846,0,12845,12846,12849,12849,12850,27999,27999,27999,27999,27999,27999,27999,27999,27999,27999,27999,27999,27999,27999,27999,27999,27999,27999,27999,27999,27999,27999,27999,27998,27998,27996,27996,27997,27997]} 1. d4 {[%emt 0:00:01]} d5 {[%emt 0:00:07][%cal Bd7d5,Bd5c4][%mdl 32]} 2. c4 {[%emt 0:00:12]} c6 {[%emt 0:00:07]} 3. Nf3 {[%emt 0:00:06]} Nf6 {[%emt 0:00:08]} 4. g3 {[%emt 0:00:12]} dxc4 {[%emt 0:00:38]} 5. Bg2 {[%emt 0:00:49]} b5 {[%emt 0:00:35]} 6. Ne5 {[%emt 0:02:45] D11: Slav Defence: 3 Nf3 sidelines and 3...Nf6 4 e3 Bg4.} Bb7 {[%emt 0:00:44]} 7. a4 $1 {[%emt 0:04:47]} a6 {[%emt 0:03:08]} 8. b3 {[%emt 0:04:35] The position is equal.} cxb3 {[%emt 0:01:27]} 9. Qxb3 {[%emt 0:05:43][%csl Ge5][%cal Rb3f7] [#]} e6 {[%emt 0:00:19]} 10. Bb2 {[%emt 0:01:42]} Qb6 {[%emt 0:42:34]} 11. O-O {[%emt 0:04:03]} Nbd7 {[%emt 0:01:24] [#]} 12. a5 $146 {[%emt 0:19:23]} ({Predecessor:} 12. Nxd7 Nxd7 13. Nd2 Be7 14. axb5 cxb5 15. d5 e5 16. Rfd1 a5 17. d6 Bxg2 18. dxe7 {1-0 (46) Fridman,D (2633)-Stefanova,A (2486) Skopje 2018}) 12... Qc7 {[%emt 0:01:22]} 13. Nxd7 $1 {[%emt 0:20:57]} Nxd7 {[%emt 0:08:52]} 14. Rc1 {[%emt 0:00:16]} Be7 {[%emt 0:14:31]} 15. Nd2 {[%emt 0:02:00]} O-O {[%emt 0:09:22]} 16. Ne4 {[%emt 0:02:44]} e5 {[%emt 0:08:24]} 17. e3 {[%emt 0:07:54][%cal Be2e3,Be3d4,Bd4d5,Bd5c6][%mdl 32]} exd4 {[%emt 0:03:47]} 18. exd4 {[%emt 0:00:05]} Rfd8 {[%emt 0:01:09] [#]} (18... Rad8 $15 {keeps the upper hand.}) 19. d5 $1 $16 {[%emt 0:02:19] Hoping for dxc6. White is more active. Black is on the road to losing.} Nf8 {[%emt 0:00:42]} (19... Ne5 $16) 20. dxc6 {[%emt 0:00:32]} Bc8 {[%emt 0:00:05]} 21. Qe3 $40 {[%emt 0:05:38][%mdl 128] Black is in trouble.} ({Don't play} 21. Qc3 $6 Ne6 22. Qe3 b4) 21... Rb8 {[%emt 0:01:03]} (21... Bf5 {keeps fighting.} 22. Nc3 (22. Qc3 Ne6 $14) 22... Be6) 22. Nc5 $18 {[%emt 0:01:45]} ({Less strong is} 22. Qc3 Ne6 $14) 22... Ne6 {[%emt 0:00:23]} 23. Nxe6 {[%emt 0:01:33]} Bxe6 {[%emt 0:00:07]} 24. Qe5 {[%emt 0:01:33]} Qxe5 {[%emt 0:00:27]} 25. Bxe5 {[%emt 0:00:05] aiming for c7.} Rbc8 {[%emt 0:00:59]} 26. c7 {[%emt 0:00:21]} Re8 {[%emt 0:00:25]} 27. Bb7 {[%emt 0:00:22][%csl LRa6,LRc8]} f6 {[%emt 0:00:09]} 28. Bd4 {[%emt 0:01:08]} Bc4 {[%emt 0:00:16]} 29. Bb6 {[%emt 0:01:27]} Bd6 {[%emt 0:00:41]} 30. Bxa6 {[%emt 0:10:33]} Bxc7 {[%emt 0:00:09]} 31. Bxc8 {[%emt 0:00:00]} Rxc8 {[%emt 0:00:06]} 32. Bxc7 {[%emt 0:00:00]} Rxc7 {[%emt 0:00:13][%mdl 4096] Endgame KRR-KRB} 33. Rd1 {[%emt 0:00:00]} Kf7 {[%emt 0:00:54]} 34. Rd8 {[%emt 0:00:00]} Ra7 {[%emt 0:00:25]} 35. Rb8 {[%emt 0:00:00] Black must now prevent a6.} Kg6 {[%emt 0:00:05]} 36. a6 {[%emt 0:00:00] Threatens to win with Rb7.} b4 {[%emt 0:00:26]} 37. Rxb4 {[%emt 0:00:00]} Rxa6 {[%emt 0:00:04]} 38. Rxa6 {[%emt 0:00:00]} Bxa6 {[%emt 0:00:04] KR-KB} 39. Ra4 {[%emt 0:00:00]} Bb7 {[%emt 0:00:21]} 40. Ra5 {[%emt 0:00:00]} Be4 {[%emt 0:01:00]} 41. Kf1 {[%emt 0:00:00]} Bf3 {[%emt 0:02:45]} 42. Ke1 {[%emt 0:00:00]} Kh6 {[%emt 0:00:18]} 43. Ra6 {[%emt 0:00:00]} Bb7 {[%emt 0:00:26]} 44. Rb6 {[%emt 0:00:00]} Bc8 {[%emt 0:00:08]} 45. Kd2 {[%emt 0:00:00]} Kg6 {[%emt 0:00:04]} 46. Ke3 {[%emt 0:00:04]} Kf7 {[%emt 0:00:06]} 47. Rc6 {[%emt 0:00:23]} Bd7 {[%emt 0:00:13]} (47... Be6 48. h4 h5) 48. Rc7 {[%emt 0:00:06]} Ke6 {[%emt 0:00:03]} 49. h4 {[%emt 0:01:30]} g6 {[%emt 0:00:36]} 50. Ra7 {[%emt 0:00:35]} h6 {[%emt 0:00:27]} 51. Ra6+ {[%emt 0:00:49]} (51. f3 $142 Kd6 52. g4) 51... Ke7 {[%emt 0:03:12]} 52. Kd4 {[%emt 0:00:19]} (52. f3 $142 Bc8 53. Ra5) 52... g5 {[%emt 0:00:00]} 53. hxg5 {[%emt 0:00:43]} hxg5 {[%emt 0:00:00]} 54. Kd5 {[%emt 0:00:30]} Bg4 {[%emt 0:00:00]} 55. Ra7+ {[%emt 0:00:10]} Kf8 {[%emt 0:00:00]} 56. Kd6 {[%emt 0:01:28]} Bh3 {[%emt 0:00:38]} 57. Rc7 {[%emt 0:00:05]} Bg4 {[%emt 0:01:36]} 58. Ra7 {[%emt 0:00:24]} Bh3 $1 {[%emt 0:00:12]} 59. f3 {[%emt 0:00:10]} Bg2 {[%emt 0:00:55]} 60. Ke6 {[%emt 0:00:15]} Bxf3 {[%emt 0:00:06]} 61. Kxf6 {[%emt 0:00:23]} g4 {[%emt 0:00:06] White mates.} 62. Rc7 {[%emt 0:00:20][%cal Rc7c8]} Kg8 {[%emt 0:00:35]} 63. Kg5 {[%emt 0:00:35]} Kf8 {[%emt 0:00:31]} 64. Rc4 {[%emt 0:00:42]} Kf7 {[%emt 0:00:15]} 65. Kf5 {[%emt 0:02:37]} Kg7 {[%emt 0:00:29]} 66. Rc7+ {[%emt 0:00:19]} Kf8 {[%emt 0:00:33]} 67. Kg6 {[%emt 0:01:07]} Ke8 {[%emt 0:01:31]} 68. Rf7 {[%emt 0:01:05]} Be4+ {[%emt 0:00:17]} 69. Kg7 {[%emt 0:00:05]} Bf3 {[%emt 0:00:06]} 70. Rf4 {[%emt 0:00:08]} Ke7 {[%emt 0:00:40]} 71. Kg6 {[%emt 0:00:08]} Bd1 {[%emt 0:00:31]} 72. Kg5 {[%emt 0:00:11]} Ke6 {[%emt 0:00:17]} 73. Rxg4 {[%emt 0:00:19]} Bxg4 {[%emt 0:00:08]} 74. Kxg4 {[%emt 0:00:03]} Kf6 {[%emt 0:00:16]} 75. Kh5 {[%emt 0:00:09] Weighted Error Value: White=0.37/Black=0.24 (precise)} 1-0

[Event "Charlotte Summer IM B 2022"]
[Site "Charlotte"]
[Date "2022.07.25"]
[Round "2.5"]
[White "Homa, Seth"]
[Black "Mishra, Prateek"]
[Result "0-1"]
[ECO "A36"]
[WhiteElo "2237"]
[BlackElo "2204"]
[Annotator "TA"]
[PlyCount "84"]
[EventDate "2022.07.24"]
[EventType "tourn"]
[EventCountry "USA"]
[SourceTitle "playchess.com"]
[Source "ChessBase"]
[SourceQuality "1"]
[TimeControl "5400+30"]

{[%evp 16,84,7,0,9,6,20,0,6,3,8,0,11,0,20,16,45,42,43,23,92,87,89,15,8,0,0,0,0,0,0,0,0,0,0,0,4,-11,-20,-32,0,-86,-87,-77,-63,-250,-241,-483,-475,-818,-794,-881,-882,-799,-413,-766,-644,-29976,-29977,-29989,-29989,-29992,-29988,-29989,-29990,-29992,-29989,-29989,-29990,-29991,-29992]} 1. c4 {[%emt 0:00:06]} g6 {[%emt 0:00:04]} 2. Nc3 {[%emt 0:00:18]} c5 {[%emt 0:00:11]} 3. g3 {[%emt 0:00:15]} Bg7 {[%emt 0:00:28]} 4. Bg2 {[%emt 0:00:12]} Nc6 {[%emt 0:00:08]} 5. e4 {[%emt 0:00:16]} d6 {[%emt 0:02:12]} 6. d3 {[%emt 0:00:14]} e5 {[%emt 0:00:34]} 7. Nge2 {[%emt 0:00:17]} Nge7 {[%emt 0:00:16]} 8. O-O {[%emt 0:00:36]} O-O {[%emt 0:00:13]} 9. a3 {[%emt 0:01:32]} a6 {[%emt 0:07:59] A36: Symmetrical English vs ...g6: 4 Bg2 Bg7.} 10. Rb1 {[%emt 0:01:00]} Rb8 {[%emt 0:00:36]} 11. b4 {[%emt 0:00:12]} cxb4 {[%emt 0:00:52] The position is equal.} 12. axb4 {[%emt 0:00:11]} b5 $1 {[%emt 0:00:11]} 13. cxb5 {[%emt 0:00:10]} axb5 {[%emt 0:00:08]} 14. Bg5 {[%emt 0:03:14]} Be6 {[%emt 0:11:09]} 15. Qd2 {[%emt 0:01:15] [#]} Qd7 $146 {[%emt 0:01:48]} ({Predecessor:} 15... f6 16. Be3 f5 17. exf5 Bxf5 18. Nd5 Be6 19. Nxe7+ Nxe7 20. Rfc1 Nf5 21. Ra1 Rc8 22. Rxc8 Qxc8 {1-0 (55) Malinowski,D (2238)-Morosi,D (2166) ICCF email 2017}) 16. Nd5 {[%emt 0:07:05] [#] aiming for Nf6+.} Bxd5 {[%emt 0:20:26]} 17. exd5 {[%emt 0:00:29]} Nd4 {[%emt 0:04:38]} (17... Nd8 $11 {keeps the balance.}) 18. Nxd4 $16 {[%emt 0:09:37]} exd4 {[%emt 0:00:06]} 19. Bxe7 {[%emt 0:05:21]} ({White should play} 19. Rfe1 $16 Rfe8 20. h4) 19... Qxe7 $11 {[%emt 0:00:10]} 20. Rfc1 {[%emt 0:00:12]} Ra8 {[%emt 0:08:52][%cal Bb8a8,Ba8a3,Ba3c3][%mdl 32]} 21. Rc6 {[%emt 0:02:41]} Ra3 {[%emt 0:01:07]} 22. h4 {[%emt 0:28:29]} Rfa8 {[%emt 0:02:21]} 23. Rbc1 {[%emt 0:03:21]} Rc3 {[%emt 0:01:30]} 24. h5 {[%emt 0:06:14]} gxh5 {[%emt 0:08:46][%cal Bg6h5,Bh5h4,Bh4h3,Bh3h2][%mdl 32]} 25. Be4 {[%emt 0:01:11]} h4 {[%emt 0:03:02]} 26. g4 {[%emt 0:00:28]} h3 {[%emt 0:01:39]} 27. Qf4 {[%emt 0:01:41]} Qe5 {[%emt 0:02:20]} 28. Qf3 {[%emt 0:01:05]} (28. Qd2 $1 $11) 28... h2+ $17 {[%emt 0:01:48]} 29. Kg2 {[%emt 0:00:18]} Qg5 $36 {[%emt 0:05:30][%mdl 2048] Black fights for an advantage. Chess con chili.} 30. Rh1 {[%emt 0:03:37] Loses the game.} (30. Rf1 $1 $15) 30... Be5 $19 {[%emt 0:00:29]} 31. Rxc3 $2 {[%emt 0:11:00]} (31. Qf5 {might work better.} Qxf5 32. Bxf5) 31... dxc3 {[%emt 0:00:09]} 32. d4 {[%emt 0:00:07]} (32. Qf5 $142 Qxf5 33. Bxf5) 32... Bf4 {[%emt 0:01:05]} 33. Qh3 {[%emt 0:00:57]} h6 {[%emt 0:02:28][%cal Bh7h6,Bh6h5,Bh5g4][%mdl 32] Active counter play!} 34. Bf5 {[%emt 0:00:06]} Ra3 {[%emt 0:02:31] [#] ...Ra2 is the strong threat.} 35. Qd3 {[%emt 0:00:55]} (35. Re1 $142) 35... h5 {[%emt 0:00:27]} 36. Qxb5 {[%emt 0:00:06]} hxg4 {[%emt 0:00:19] Black mates.} 37. Qe8+ {[%emt 0:01:43]} Kg7 {[%emt 0:12:28]} 38. Bh7 {[%emt 0:12:59]} Qxd5+ {[%emt 0:00:30]} 39. Be4 {[%emt 0:00:30]} Qh5 {[%emt 0:00:00][%csl Gg4][%cal Rh5h3]} 40. Kf1 {[%emt 0:00:30]} Ra1+ {[%emt 0:00:00]} 41. Ke2 {[%emt 0:00:00]} Rxh1 {[%emt 0:01:30]} 42. Bxh1 {[%emt 0:00:00]} c2 {[%emt 0:00:00] Weighted Error Value: White=0.66/Black=0.28 (precise)} 0-1

[Event "Charlotte Summer IM B 2022"]
[Site "Charlotte"]
[Date "2022.07.26"]
[Round "3.1"]
[White "Mishra, Prateek"]
[Black "Zaloznyy, Mike"]
[Result "1-0"]
[ECO "B12"]
[WhiteElo "2204"]
[BlackElo "2171"]
[Annotator "TA"]
[PlyCount "53"]
[EventDate "2022.07.24"]
[EventType "tourn"]
[EventCountry "USA"]
[SourceTitle "playchess.com"]
[Source "ChessBase"]
[SourceQuality "1"]
[TimeControl "5400+30"]

{[%evp 9,53,16,6,11,11,16,6,0,22,13,18,6,8,2,16,0,0,0,0,-16,-20,-42,-32,-47,-50,-48,-36,-40,-29,-34,124,113,132,116,593,362,356,320,1287,1282,1104,354,1866,824,6237,5727]} 1. e4 {[%emt 0:01:20]} c6 {[%emt 0:09:51]} 2. d4 {[%emt 0:00:07]} d5 {[%emt 0:00:14]} 3. e5 {[%emt 0:00:06]} c5 {[%emt 0:00:03]} 4. Nf3 {[%emt 0:00:05]} cxd4 {[%emt 0:00:10]} 5. Nxd4 {[%emt 0:00:08]} Nc6 {[%emt 1:22:42]} 6. Nxc6 {[%emt 0:00:20] B12: Caro-Kann: Advance Variation.} bxc6 {[%emt 0:00:00]} 7. Bd3 {[%emt 0:00:05]} e6 {[%emt 0:00:00]} 8. Nd2 {[%emt 0:00:46] [#] The position is equal.} a5 $146 {[%emt 0:00:00]} ({Predecessor:} 8... Ne7 9. Nf3 a5 10. O-O Ng6 11. Re1 Ba6 12. Bxg6 hxg6 13. Bg5 Qb6 14. Rb1 c5 15. b3 Be7 16. Bxe7 Kxe7 17. Qd2 {½-½ (17) Paravyan,D (2617)-Alekseenko,K (2698) Chess.com INT 2022}) 9. Nf3 {[%emt 0:00:36]} Ba6 {[%emt 0:00:00]} 10. Bxa6 {[%emt 0:02:25]} Rxa6 {[%emt 0:00:00]} 11. Qd3 {[%emt 0:00:03]} Qb6 {[%emt 0:00:00]} 12. O-O {[%emt 0:01:22]} Bc5 {[%emt 0:00:00]} 13. c3 {[%emt 0:04:08][%cal Ob2b4]} a4 {[%emt 0:00:00]} 14. Bd2 {[%emt 0:01:59]} Ne7 {[%emt 0:00:00]} 15. Nd4 {[%emt 0:12:21]} (15. Rac1 {is more complex.} O-O 16. Ng5 Ng6 17. h4) 15... Qa7 {[%emt 0:00:00]} 16. Be3 {[%emt 0:03:46][%cal Od4f5]} Bb6 $1 {[%emt 0:00:00]} 17. f4 {[%emt 0:05:03]} g6 {[%emt 0:00:00]} 18. g4 {[%emt 0:01:51]} h5 {[%emt 0:00:00]} 19. f5 $1 {[%emt 0:07:02]} hxg4 $2 {[%emt 0:00:00]} (19... Bxd4 $15 {stays ahead.} 20. Bxd4 c5) 20. fxe6 $16 {[%emt 0:00:52]} fxe6 {[%emt 0:00:00] Hoping for ...Nf5.} 21. Rf6 {[%emt 0:00:45] 0x0.0013b8fa2b8bdp-1022s more active pieces.} Rh3 $2 {[%emt 0:00:00][%mdl 8192] This move loses the game for Black.} (21... Bxd4 $16 {is more resistant.} 22. Bxd4 (22. cxd4 Qb7 $16) 22... Qb7) 22. Rxe6 {[%emt 0:01:47] Intending Qxg6+ and mate.} Bxd4 {[%emt 0:00:00]} 23. cxd4 {[%emt 0:06:57] Chess con chili.} Kd7 $2 {[%emt 0:00:00] [#]} (23... Kf7 24. Rf6+ (24. Rd6 Nf5 $18) 24... Kg7) 24. Rxe7+ $1 $18 {[%emt 0:09:42][%mdl 512]} Kxe7 {[%emt 0:00:00]} 25. Qxg6 $2 {[%emt 0:00:06]} (25. Rf1) 25... c5 $2 {[%emt 0:00:00] [#]} (25... Rxe3 26. Qg5+ Ke8 27. Qxe3 Qg7) 26. Qxg4 $1 {[%emt 0:04:08]} Qd7 {[%emt 0:00:00]} (26... Rxe3 27. Rf1) 27. Qg5+ {[%emt 0:00:30] Weighted Error Value: White=0.61/Black=0.63} 1-0